Cogmind - Beta 16 @@@ ROGUE MODE // 2025.11.30 @ 19:33:04 Player: OG DANIEL Result: Self-destructed Performance ------------- Evolutions (1) 500 Regions Visited (3) 600 Robots Destroyed (14) 70 Value Destroyed (373) 373 Prototype IDs (0) 0 Alien Tech Used (0) 0 Bonus (0) 0 TOTAL SCORE: 1543 Bonus ------- None Cogmind --------- Core Integrity 345/400 Matter 300/300 Energy 250/250 System Corruption 0% Temperature Cool (0) Movement Core (200) Ox3 Location -9/Materials Parts ------- > --- POWER (1) -------- Ion Engine > --- PROPULSION (4) --- Light Treads > --- UTILITY (2) ------ Small Storage Unit Seismic Detector > --- WEAPON (2) ------- (None) > --- INVENTORY (8) ---- Light Ion Engine Wheel Compact Wheel Small Laser Peak State ------------ > --- POWER ------------ Light Ion Engine > --- PROPULSION ------- Light Treads Light Treads Aluminum Leg Aluminum Leg > --- UTILITY ---------- Small Storage Unit Seismic Detector > --- WEAPON ----------- Small Laser Light Assault Rifle > --- INVENTORY -------- Light Ion Engine Aluminum Leg Wheel Compact Wheel Small Laser Light Assault Rifle [Rating: 9] Favorites ----------- Power Light Ion Engine Engine Light Ion Engine Propulsion Aluminum Leg Treads Light Treads Leg Aluminum Leg Utility Small Storage Unit Device Seismic Detector Storage Small Storage Unit Weapon Light Assault Rifle Energy Gun Small Laser Ballistic Gun Light Assault Rifle Build | -11 -10 -10 -9 ------- Run | Yrd Mat Min Mat Slots Evolved 2 | . . . 2 Power . | . . . . Propulsion 2 | . . . 2 Utility . | . . . . Weapon . | . . . . Parts Attached 15 | 7 2 . 6 Power 4 | 1 1 . 2 Engine 4 | 1 1 . 2 Core . | . . . . Reactor . | . . . . Propulsion 5 | 2 . . 3 Treads 2 | . . . 2 Leg 3 | 2 . . 1 Wheel . | . . . . Hover . | . . . . Flight . | . . . . Utility 2 | 2 . . . Device 1 | 1 . . . Storage 1 | 1 . . . Processor . | . . . . Hackware . | . . . . Protection . | . . . . Artifact . | . . . . Weapon 4 | 2 1 . 1 Energy Gun 2 | 1 1 . . Energy Cannon . | . . . . Ballistic Gun 2 | 1 . . 1 Ballistic Cannon . | . . . . Launcher . | . . . . Special Weapon . | . . . . Impact Weapon . | . . . . Slashing Weapon . | . . . . Piercing Weapon . | . . . . Special Melee Weapon . | . . . . Unidentified Prototypes . | . . . . Parts Lost 8 | . . . 8 Power 1 | . . . 1 Propulsion 4 | . . . 4 Utility . | . . . . Weapon 3 | . . . 3 Highest Loss Streak 5 | . . . 5 To Critical Strikes . | . . . . Average Backups 6 | 4 6 8 5 Power 1 | . 1 1 . Propulsion 3 | 3 4 5 2 Utility . | . . . . Weapon 1 | . 1 2 1 Tool/Special . | . . . . Unused Backups 3 | . 1 . 2 Power 1 | . 1 . . Propulsion 2 | . . . 2 Utility . | . . . . Weapon . | . . . . Tool/Special . | . . . . Average Slot Usage (%) 98 | . 100 100 96 Engine 12 | . 14 14 11 Treads 7 | . . . 21 Leg 25 | . 28 28 21 Device 12 | . 14 14 11 Storage 12 | . 14 14 11 Energy Gun 11 | . 14 14 7 Ballistic Gun 13 | . 14 14 12 Peak Build Rating 9 | 7 7 7 9 Average Rating 7 | 5 7 7 8 On Entrance 5 | . 7 7 7 Avg Prop Armor Cover (%) 13 | . . . 13 Naked Turns . | . . . . Heaviest Build 13 | 13 13 11 13 Greatest Support 40 | 20 20 20 40 Greatest Overweight (x) 1 | 1 . . 1 Average Overweight (x) . | . . . . Largest Inventory Capacity 8 | 8 8 8 8 Average Capacity 7 | 7 8 8 8 Most Carried 8 | 6 8 8 7 Average Carried 6 | 4 6 8 5 Final Capacity 8 | 8 8 8 8 Final Carried 8 | 6 8 8 4 Class Distribution -------------------- 100% | Mutant Dominant Class ---------------- Mutant | -10/Materials Mutant | -10/Mines Mutant | -9/Materials Resources | -11 -10 -10 -9 ----------- Run | Yrd Mat Min Mat Matter Collected 387 | 254 52 13 68 Remotely . | . . . . Salvage Created 409 | 25 145 43 196 Parts 27 | 2 13 1 11 Haulers Intercepted . | . . . . Recyclers Shooed 1 | . 1 . . Parts Field Recycled . | . . . . Retrieved Matter . | . . . . Parts Self-Destructed . | . . . . Prevented . | . . . . Parts Restored . | . . . . Kills | -11 -10 -10 -9 ------- Run | Yrd Mat Min Mat Combat Hostiles Destroyed 13 | . 7 1 5 Guns 12 | . 7 1 4 AOE 1 | . . . 1 Classes Destroyed 4 | 1 2 . 1 Tunneler 1 | 1 . . . Swarmer 5 | . 5 . . Grunt 7 | . 2 1 4 Sentry 1 | . . . 1 Best Kill Streak 4 | 1 4 1 3 Combat Bots Only 4 | . 4 1 3 Max Kills in Single Turn 1 | 1 1 1 1 Gunslinging . | . . . . Exploded 1 | . . . 1 Melee . | . . . . Uniques/NPCs Destroyed . | . . . . Combat | -11 -10 -10 -9 -------- Run | Yrd Mat Min Mat Hostile Shots Fired 87 | . 38 8 41 Missed 27 | . 13 3 11 Hits 60 | . 25 5 30 Melee 5 | . . . 5 Projectile 55 | . 25 5 25 Critical Strikes 2 | . . 2 . Damage Taken 922 | . 257 79 586 Core 112 | . 57 . 55 Absorbed by Shields . | . . . . Core Remaining (%) 88 | 100 . 77 . Volleys Fired 58 | 2 19 8 29 Largest 2 | 2 2 2 2 Hottest 60 | 60 60 60 40 Shots Fired 92 | 4 37 16 35 Gun 92 | 4 37 16 35 Cannon . | . . . . Launcher . | . . . . Special . | . . . . Kinetic 64 | 2 19 8 35 Thermal 28 | 2 18 8 . Explosive . | . . . . Electromagnetic . | . . . . Robot Hit Streak 17 | 3 11 17 10 Robot Miss Streak 3 | . 3 . 3 Penetration Max . | . . . . Secondary Targets 2 | . 1 . 1 Max Gunslinging Chain 1 | . 1 . 1 Shots Hit Robots 65 | 3 21 16 25 Core Hits 31 | 2 12 4 13 Critical Kills . | . . . . Critical Parts Destroyed . | . . . . Critical Strikes . | . . . . Melee Attacks . | . . . . Impact . | . . . . Slashing . | . . . . Piercing . | . . . . Sneak Attacks . | . . . . Combat Hostiles . | . . . . Follow-up Attacks . | . . . . Damage Inflicted 792 | 30 189 149 424 Guns 579 | 30 189 149 211 Cannons . | . . . . Explosions 213 | . . . 213 Melee . | . . . . Ramming . | . . . . Kinetic 367 | 7 86 63 211 Thermal 212 | 23 103 86 . Explosive 213 | . . . 213 Electromagnetic . | . . . . Impact . | . . . . Slashing . | . . . . Piercing . | . . . . Highest Corruption . | . . . . Average Corruption . | . . . . Corruption Purged . | . . . . Corruption Blocked . | . . . . Overload Shots . | . . . . Overflow Damage 9 | . . . 9 Projectiles . | . . . . Explosions 9 | . . . 9 Melee . | . . . . Knockbacks . | . . . . Impact . | . . . . Kinetic . | . . . . Secondary . | . . . . Self-Inflicted Damage 111 | . . . 111 Shots 1 | . . . 1 Rammed . | . . . . Targets Rammed . | . . . . Kicked . | . . . . Crushed . | . . . . Highest Temperature 121 | 20 46 121 6 Average Temperature 31 | 15 18 65 3 Received Heat Transfer 309 | . 99 81 129 Siege Activations . | . . . . Martial Activations . | . . . . Shielding Activations . | . . . . Robots Disrupted . | . . . . Combat Hostiles . | . . . . Robots Corrupted . | . . . . Combat Hostiles . | . . . . Parts Fried . | . . . . Impact Corruptions . | . . . . Robots Melted . | . . . . Combat Hostiles . | . . . . Parts Melted . | . . . . Heat Transferred 500 | 50 250 200 . Parts Sabotaged . | . . . . Parts Stolen . | . . . . Parts Stripped . | . . . . Power Chain Reactions . | . . . . Alert | -11 -10 -10 -9 ------- Run | Yrd Mat Min Mat Maximum Alert Level . | . . . . Low Security (%) 100 | 100 100 100 100 Level 1 . | . . . . Level 2 . | . . . . Level 3 . | . . . . Level 4 . | . . . . Level 5 . | . . . . High Security . | . . . . Max Security . | . . . . Peak Influence 136 | 5 136 45 93 Initial 45 | . . 45 13 Average 17 | . 38 10 11 Influence Increases 459 | 5 236 45 173 Destroy 0b10 Robot/C 260 | . 140 20 100 Destroy 0b10 Robot/NC 5 | 5 . . . Destroy Leader 70 | . 40 10 20 Successful Hack 11 | . 11 . . Disable Machine 30 | . . . 30 Destroy Structure 23 | . . . 23 Lose Combat Pursuer 60 | . 45 15 . Influence Decreases 406 | 5 120 126 155 Entered New Map 93 | . . 71 22 Time Decay 243 | 5 120 55 63 Lost Part 70 | . . . 70 Squads Dispatched 4 | . 3 . 1 Investigation 2 | . 2 . . Extermination . | . . . . Reinforcement 2 | . 1 . 1 Assault . | . . . . Garrison . | . . . . Intercept . | . . . . Searches Triggered . | . . . . Construction Impeded . | . . . . Haulers Reinforced . | . . . . Active Scanning Responses . | . . . . Cargo Convoy Interrupts . | . . . . Stealth | -11 -10 -10 -9 --------- Run | Yrd Mat Min Mat Distress Signals 3 | . 3 . . Communications Jammed . | . . . . Distress Signals . | . . . . Times Spotted 30 | . 20 2 8 Peak Tracking Total 10 | . 10 2 4 Tactical Retreats 3 | . 2 1 . Traps | -11 -10 -10 -9 ------- Run | Yrd Mat Min Mat Traps Triggered 1 | . 1 . . Indirectly . | . . . . Trap Hack Attempts . | . . . . Triggered . | . . . . Disarmed . | . . . . Reprogrammed . | . . . . Reused . | . . . . Traps Extracted . | . . . . Installed . | . . . . Triggered . | . . . . Machines | -11 -10 -10 -9 ---------- Run | Yrd Mat Min Mat Machines Disabled 2 | . . . 2 Max in Single Turn 2 | . . . 2 Machines Repaired . | . . . . Machines Dismantled . | . . . . Machines Sabotaged . | . . . . Overloaded Fab Kills . | . . . . Hacking | -11 -10 -10 -9 --------- Run | Yrd Mat Min Mat Machines Accessed 4 | . 4 . . Terminals 4 | . 4 . . Fabricators . | . . . . Repair Stations . | . . . . Recycling Units . | . . . . Scanalyzers . | . . . . Garrison Access . | . . . . Total Hacks 11 | . 11 . . Successful 4 | . 4 . . Failed 7 | . 7 . . Catastrophic . | . . . . Database Lockouts . | . . . . Manual 11 | . 11 . . Terminals 11 | . 11 . . Fabricators . | . . . . Repair Stations . | . . . . Recycling Units . | . . . . Scanalyzers . | . . . . Garrison Access . | . . . . Terminal Hacks . | . . . . Fabricator Hacks . | . . . . Repair Station Hacks . | . . . . Recycling Unit Hacks . | . . . . Scanalyzer . | . . . . Garrison Access Hacks . | . . . . Unauthorized Hacks 4 | . 4 . . Terminals 4 | . 4 . . Botnet 3 | . 3 . . Detonate 1 | . 1 . . Fabricators . | . . . . Repair Stations . | . . . . Recycling Units . | . . . . Scanalyzers . | . . . . Garrison Access . | . . . . Data Cores Recovered . | . . . . Used . | . . . . Hacking Detections 3 | . 3 . . Full Trace Events 2 | . 2 . . Feedback Events . | . . . . Feedback Blocked . | . . . . Robot Schematics Acquired . | . . . . Robots Built . | . . . . Authchips . | . . . . Time . | . . . . Total Robot Build Rating . | . . . . Part Schematics Acquired . | . . . . Parts Built . | . . . . Authchips . | . . . . Time . | . . . . Total Part Build Rating . | . . . . Part Studies Acquired . | . . . . Parts Repaired . | . . . . Time . | . . . . Parts Recycled . | . . . . Recycled Matter . | . . . . Retrieved Matter . | . . . . Retrieved Components . | . . . . Parts Scanalyzed . | . . . . Part Schematics Acquired . | . . . . Parts Damaged . | . . . . Bothacking | -11 -10 -10 -9 ------------ Run | Yrd Mat Min Mat Used RIF Installer . | . . . . Robots Hacked . | . . . . Non-combat . | . . . . Combat . | . . . . Robot Hacks Applied . | . . . . Relay Couplers Released . | . . . . Fabnet Peak Effective % . | . . . . Robots Rewired . | . . . . Allies Hacked . | . . . . Hacks Repelled . | . . . . Allies | -11 -10 -10 -9 -------- Run | Yrd Mat Min Mat Total Allies . | . . . . Largest Group . | . . . . Highest-Rated Group . | . . . . Highest-Rated Ally . | . . . . Total Orders . | . . . . Ally Attacks . | . . . . Total Damage . | . . . . Kills . | . . . . Allies Corrupted . | . . . . Allies Melted . | . . . . Intel | -11 -10 -10 -9 ------- Run | Yrd Mat Min Mat Active Infowar (turns) 989 | 22 303 303 361 Seismic 989 | 22 303 303 361 Robot Analysis Total . | . . . . Derelict Logs Recovered . | . . . . Drone Launches . | . . . . Drone Recoveries . | . . . . Exploration | -11 -10 -10 -9 ------------- Run | Yrd Mat Min Mat Turns Passed 1082 | 115 303 303 361 Spaces Moved 564 | 76 192 233 63 Core 7 | 7 . . . Treads 47 | . . . 47 Legs 510 | 69 192 233 16 Wheels . | . . . . Hover . | . . . . Flight . | . . . . Fastest Speed 50 | 50 120 120 160 Average Speed 124 | 114 120 120 167 Slowest Speed 190 | 120 120 120 190 Overloaded Moves . | . . . . Propulsion Burnouts . | . . . . Robots Hopped . | . . . . Potential Cave-ins . | . . . . Cave-ins Triggered . | . . . . Exploration Rate (%) 27 | 4 44 52 9 Regions Visited 3 Branch Regions 1 Pre-discovered Areas . | . . . . Known Exits Taken . | . . . . Unknown Exits Taken 3 | 1 1 1 . Scrap Searched . | . . . . Spaces Dug . | . . . . Terrain Destroyed 23 | . . . 23 Melee . | . . . . Projectile . | . . . . AOE 23 | . . . 23 Terrain Rammed . | . . . . Walls Destroyed . | . . . . Machines Disabled . | . . . . Actions | -11 -10 -10 -9 --------- Run | Yrd Mat Min Mat Total 860 | 97 232 242 289 Wait 215 | 7 15 2 191 Move 561 | 75 191 232 63 Hop . | . . . . Pick Up 8 | 6 2 . . Fast Attach 8 | 7 1 . . Attach 5 | . . . 5 Detach 1 | . 1 . . Swap 2 | . 1 . 1 Drop 2 | . 2 . . Fire 58 | 2 19 8 29 Melee . | . . . . Ram . | . . . . Kick . | . . . . Crush . | . . . . Escape Stasis . | . . . . Rewire . | . . . . Trap . | . . . . Miscellaneous . | . . . . Route ------- -11/Scrapyard -10/Materials (discovered 2 exits: [*Mat] / [*Min]) -10/Mines -9/Materials History --------- Turn | Location | Event 15 | -11/Scrapyard | Discovered new exit (range 16) 116 | -11/Scrapyard | Entered Materials 314 | -10/Materials | Build established: Mutant 330 | -10/Materials | Discovered new exit (range 16) 413 | -10/Materials | Discovered new exit (range 6) 419 | -10/Materials | Entered Mines 567 | -10/Mines | A weapon hastily lodged in a ceiling crevice suddenly fell to the ground 672 | -10/Mines | Discovered new exit (range 9) 722 | -10/Mines | Entered Materials 722 | -9/Materials | Evolved 2 slots: Propulsion x2 1034 | -9/Materials | Lost 3 parts (1p1n1w) 1083 | -9/Materials | Self-destructed Last Messages --------------- 01060_ G-34 Mercenary destroyed. 01060_ Terminal disabled. 01060_ Destroyed Tractor Beam. 01060_ U-05 Engineer builds a Wall. 01062_ The unstable cave ceiling collapses. 01063_ U-05 Engineer lays Concrete. 01064_ U-05 Engineer builds a Wall. 01065_ The unstable cave ceiling collapses. 01065_ G-34 Mercenary destroyed. 01067_ The unstable cave ceiling collapses. 01070_ U-05 Engineer lays Concrete. 01072_ Aluminum Leg destroyed. 01073_ U-05 Engineer builds a Wall. 01073_ U-05 Engineer lays Concrete. 01075_ U-05 Engineer builds a Wall. 01079_ U-05 Engineer lays Concrete. 01080_ Aluminum Leg destroyed. 01080_ U-05 Engineer lays Concrete. 01082_ U-05 Engineer builds a Wall. 01082_ Lgt. Assault Rifle destroyed. Map ----- +----------------------------------------------------+ | ????????????????????????????????? | | ????????????????????????????????? | | ????????????????????????????????? | | ????????????????????????????????? | | ????????????????????????????????? | | ????????????????????????????????? | | ????????????????????????????????? | | ????????????????????????????????? | | ????? ??????????????????????????? | | ????? ??????????????????????????? | | ????? ??????????????????????????? | | ????# ??????????????????????????? | | ????# ??????????????????????????? | | ????# ????"?????????????????????? | | ????# ???? ????????? ???????????? | | ????# ####+###?????? ???????????? | | ????# #######+##### ????? | | ????# +???? | | ????# #???? | | ????# #???? | | ???## """"" #???? | | ??###u# ## """"" ##??? | | ?## #%# """"" #??? | | ## g ### #??? | | # %!# !! #??? | | # l@ """"" ! #??? | | # """"" #??? | | # # """" #??? | | # #??? | | # #??? | | # "T" ##+####### #??? | | # """ # ## #??? | | # # """ ## #??? | | ######%### """ ## #??? | | ?????###?# """ ## #??? | | ?????????# ## #######??? | | ?????????# ## #????????? | | ?????????# " " ######????????? | | ?????????# "R" ? #?????????????? | | ?????????# """? ????????????????? | | ?????????#####?#????????????????? | | ????????????????????????????????? | | | | | | | | | | | | | | | | | +----------------------------------------------------+ Best States ------------- Heat Dissipation 28 Energy Generation 10 Energy Capacity 250 Matter Stores 300 Matter Capacity 300 Sight Range 16 Terrain Scan Density 10 Evasion (%) 55 Recoil Reduction 2 Item Schematics ----------------- None Robot Schematics ------------------ None Fabricated ------------ Nothing Repaired ---------- Nothing Studied --------- None Alien Tech Used ----------------- None Achievements -------------- None Challenges ------------ None Game ------ Seed ThermicCargoDiverter Manual? 0 Play Time 00:08:55 Cumulative 36.9 hours Start 2025.11.30 @ 19:25:50 End 2025.11.30 @ 19:33:04 Sessions 1 Manual Loads 0 Difficulty Rogue Special Mode None Game No. 95 Rogue 95 Adventurer 0 Explorer 0 Win Type - Total 0 Types 0/0/0/0/0/0/0/0/0/0 Lore% 9 Gallery% 22 Achievement% 16 Wizard Run 0 Options --------- Layout 1 ASCII 0 Keyboard 0 Movement Numpad Keybinds 0 Fullscreen 1 Font 24/Smallcaps Map View 50x35 Zoom Use 0% Tactical HUD 1 Map Filters NONE Filters NONE Steam 1 RUN: 7d2f2232-4a42-48b5-b524-aeac01f8a9b4